bitfinex-derivatives/quotes_BNBF0:USTF0_20250511
["timestamp","ask_amount","ask_price","bid_price","bid_amount"]
[1746946104479,0.24221416,659.67,656.95,1.14996429]
[1746946104678,0.24221416,659.66,656.95,1.42912013]
[1746946104980,0.24221416,659.65,656.96,0.27915584]
[1746946105179,0.24221416,659.65,656.97,1.14996429]
[1746946105373,0.24221416,659.68,656.97,1.42912013]
[1746946105577,0.24221416,659.68,656.98,0.27915584]
[1746946105879,0.24221416,659.68,656.99,1.42912013]
[1746946106480,0.24221416,659.68,657.0,1.42912013]
[1746946106678,0.24221416,659.99,657.0,1.42912013]
[1746946106873,0.24221416,659.99,657.01,1.14996429]
[1746946107077,0.24221416,659.99,657.02,1.14996429]
[1746946107380,0.24221416,659.99,657.03,0.27915584]
[1746946107682,0.24221416,659.98,657.04,1.15040778]
[1746946107980,0.24221416,659.98,657.05,1.15040778]
[1746946108182,0.24221416,659.98,657.06,1.15040778]
[1746946108477,0.24221416,659.97,657.07,1.15040778]
[1746946108676,0.24221416,659.97,657.08,1.15040778]
[1746946108882,0.24221416,659.96,657.08,1.42956362]
[1746946109181,0.24221416,659.95,657.09,1.42956362]
[1746946109381,0.24221416,659.95,657.1,1.15040778]
[1746946109583,0.24221416,659.94,657.1,1.42956362]
[1746946109783,0.24221416,659.93,657.11,0.27915584]
[1746946110082,0.24221416,659.92,657.12,1.15040778]
[1746946110383,0.24221416,659.91,657.13,1.42956362]
[1746946110677,0.24221416,659.91,657.14,0.27915584]
[1746946110881,0.24221416,659.9,657.14,0.27915584]
[1746946111183,0.24221416,659.89,657.14,0.27915584]
[1746946111680,0.30297062,660.13,657.14,0.27915584]
[1746946111681,0.24221416,659.88,657.15,1.59040778]
[1746946111982,0.30297062,660.13,657.16,1.15040778]
[1746946112182,0.24181122,660.12,657.17,1.4295667]
[1746946112482,0.24181122,660.12,657.18,1.15040778]
[1746946112683,0.24181122,660.11,657.18,1.4295667]
[1746946112983,0.24181122,660.1,657.19,1.4295667]
[1746946113185,0.24181122,660.1,657.2,1.15200469]
[1746946113489,0.24181122,660.09,657.21,1.15201509]
[1746946113778,0.24181122,660.08,657.22,1.15196623]
[1746946113983,0.24181122,660.08,657.23,1.1519746]
[1746946114179,0.24181122,660.07,657.23,1.1519746]
[1746946114384,0.24181122,660.06,657.23,1.1519746]
[1746946114783,0.24181122,660.05,657.23,1.1519746]
[1746946114986,0.24181122,660.05,657.15,0.44]
[1746946115287,0.24181122,660.04,657.24,0.27929796]
[1746946115479,0.24181122,660.1,657.24,1.15108626]
[1746946115778,0.24181122,660.09,657.24,1.15108626]
[1746946115983,0.24181122,660.09,657.25,1.15108626]
[1746946116283,0.24181122,660.08,657.25,1.15108626]
[1746946116483,0.24181122,660.08,657.26,1.15108626]
[1746946116684,0.24181122,660.07,657.27,1.15108626]
[1746946116985,0.24181122,660.06,657.27,1.15108626]
[1746946117379,0.24181122,660.05,657.27,1.15108626]
[1746946117584,0.24181122,660.05,657.28,1.15108626]
[1746946117782,0.5060712,660.04,657.28,1.15108626]
[1746946117984,0.24181122,660.03,657.28,1.15108626]
[1746946118379,0.24181122,660.02,657.29,1.15108626]
[1746946118683,0.24181122,660.01,657.29,1.15108626]
[1746946118981,0.24181122,660.0,657.29,1.15108626]
[1746946119184,0.24181122,660.0,657.3,1.15108626]
[1746946119484,0.24181122,659.99,657.3,1.15108626]
[1746946119784,0.24181122,659.98,657.31,1.15108626]
[1746946119980,0.24181122,659.98,657.32,1.15108626]
[1746946120184,0.26425998,660.04,657.32,1.15108626]
[1746946120185,0.24181122,659.97,657.32,1.15108626]
[1746946120384,0.24181122,659.97,657.33,1.15108626]
[1746946120580,0.24181122,659.96,657.33,1.15108626]
[1746946120782,0.24181122,659.95,657.34,1.15108626]
[1746946121186,0.24181122,659.94,657.35,1.43038209]
[1746946121485,0.24181122,659.93,657.36,0.27929583]
[1746946121686,0.24181122,659.93,657.37,1.15108626]
[1746946121884,0.24181122,659.92,657.38,1.15108626]
[1746946122185,0.24181122,659.91,657.39,0.27929583]
[1746946122486,0.24181122,659.9,657.39,0.27929583]
[1746946122685,0.24181122,659.9,657.4,1.15108626]
[1746946122883,0.24181122,659.89,657.4,1.15108626]
[1746946123082,0.24181122,659.89,657.41,1.15108626]
[1746946123284,0.24181122,659.88,657.41,1.43038209]
[1746946123481,0.24181122,659.88,657.42,1.15108626]
[1746946123687,0.24181122,659.87,657.43,0.27929583]
[1746946123888,0.30314513,659.75,657.44,1.15108626]
[1746946124187,1.92318063,659.72,657.44,1.15108626]
[1746946124381,1.92318063,659.72,657.45,0.27929583]
[1746946124581,0.24181122,659.71,657.45,0.27929583]
[1746946124886,0.24181122,659.71,657.46,1.15108626]
[1746946125183,0.24181122,659.71,657.47,1.15108626]
[1746946125590,0.24181122,659.71,657.48,1.15108626]
[1746946126190,0.24181122,659.71,657.49,1.15108626]
[1746946126495,0.24181122,659.71,657.49,1.14242759]
[1746946126892,0.24181122,659.71,657.2,0.26422286]
[1746946127194,0.24181122,659.74,657.2,0.26422286]
[1746946127790,0.24181122,659.74,657.21,0.27926463]
[1746946128494,0.24181122,659.73,657.21,0.27926463]
[1746946128897,0.24181122,659.72,657.21,0.27926463]
[1746946129297,0.24181122,659.71,657.21,0.27926463]
[1746946129695,0.24181122,659.7,657.16,0.27926463]
[1746946129893,0.50607421,659.7,657.2,0.26426299]
[1746946130094,0.24181122,659.69,657.2,0.26426299]
[1746946130397,0.30322786,659.57,657.21,0.27926463]
[1746946130793,0.24181122,659.56,657.21,0.27926463]
[1746946134401,0.30328303,659.45,657.22,0.515]
[1746946135100,0.24181122,659.44,657.23,0.27926463]
[1746946135299,0.30333823,659.33,657.23,0.27926463]
[1746946135799,0.24181122,659.32,657.23,0.27926463]
[1746946136000,0.30338885,659.22,657.23,0.27926463]
[1746946136397,0.24181122,659.21,657.23,0.27926463]
[1746946136600,0.30340266,659.19,657.23,0.27926463]
[1746946137200,0.24181122,659.18,657.23,0.27926463]
[1746946137399,0.30341646,659.16,657.23,0.27926463]
[1746946137896,0.24181122,659.15,657.23,0.27926463]
[1746946138301,0.30343027,659.13,657.23,0.27926463]
[1746946138698,0.24181122,659.12,657.23,0.27926463]
[1746946138901,0.30344409,659.1,657.24,1.44906397]
[1746946139101,0.30344409,659.1,657.25,0.30429821]
[1746946139297,0.24181122,659.09,657.26,0.27926463]
[1746946139702,0.24181122,659.09,657.27,1.14476113]
[1746946140001,0.24181122,659.09,657.28,1.42402576]
[1746946140202,0.30344409,659.1,657.28,1.14476113]
[1746946140603,0.2412997,659.09,657.29,1.42390888]
[1746946141002,0.2412997,659.09,657.3,0.27914775]
[1746946141302,0.2412997,659.09,657.31,1.14476113]
[1746946141705,0.2412997,659.09,657.32,0.27914775]
[1746946141901,0.2412997,659.09,657.32,1.42390888]
[1746946142102,0.2412997,659.09,657.33,1.14476113]
[1746946142303,0.2412997,659.09,657.34,0.27914775]
[1746946142702,0.2412997,659.09,657.35,1.14476113]
[1746946143102,0.2412997,659.09,657.36,1.14476113]
[1746946143299,0.2412997,659.09,657.36,1.42390888]
[1746946143500,0.2412997,659.09,657.37,1.42390888]
[1746946143700,0.2412997,659.09,657.38,1.14476113]
[1746946143900,0.2412997,659.09,657.38,1.42390888]
[1746946144203,0.2412997,659.09,657.39,1.42390888]
[1746946144401,0.2412997,659.09,657.4,1.42390888]
[1746946144804,0.26430212,659.08,657.4,1.14476113]
[1746946145005,0.26430212,659.08,657.41,0.27923696]
[1746946145209,0.24122734,659.07,657.41,0.27923696]
[1746946145507,0.24122734,659.07,657.42,1.14476113]
[1746946145907,0.24122734,659.07,657.43,0.27923696]
[1746946146207,0.24122734,659.07,657.44,1.14476113]
[1746946146710,0.24122734,659.07,657.45,1.14476113]
[1746946147308,0.24122734,659.07,657.46,1.14476113]
[1746946148007,0.24122734,659.07,657.47,1.14476113]
[1746946148610,0.24122734,659.07,657.48,1.14476113]
[1746946149312,0.24122734,659.07,657.49,0.427]
[1746946149612,0.24122734,659.07,657.5,1.14476113]
[1746946150212,0.24122734,659.07,657.51,1.14476113]
[1746946150405,0.24122734,659.07,657.52,1.14476113]
[1746946150608,0.24122734,659.07,657.53,1.14476113]
[1746946151008,0.24122734,659.09,657.54,1.14476113]
[1746946151613,0.24122734,659.09,657.55,0.27917913]
[1746946152114,0.24122734,659.09,657.56,1.14476113]
[1746946152513,0.24122734,659.09,657.57,0.27917913]
[1746946152708,0.24122734,659.09,657.58,1.14476113]
[1746946153114,0.24122734,659.09,657.59,0.27917913]
[1746946153314,0.24122734,659.09,657.59,1.42394026]
[1746946154013,0.24122734,659.09,657.6,1.42394026]
[1746946154314,0.24122734,659.09,657.61,0.27917913]
[1746946154515,0.24122734,659.09,657.62,1.14476113]
[1746946154915,0.24122734,659.09,657.63,1.14476113]
[1746946155115,0.24122734,659.09,657.63,1.42394026]
[1746946155316,0.24122734,659.09,657.64,0.27917913]
[1746946155615,0.24122734,659.09,657.64,1.42394026]
[1746946155818,0.24122734,659.09,657.65,1.14476113]
[1746946156315,0.24122734,659.09,657.66,1.14476113]
[1746946156819,0.24122734,659.09,657.67,1.14476113]
[1746946157012,0.24122734,659.09,657.49,0.427]
[1746946157013,0.24122734,659.09,657.68,1.14476113]
[1746946157217,0.24122734,659.09,657.49,0.427]
[1746946157218,0.30344409,659.1,657.69,1.14476113]
[1746946157614,0.24099372,659.09,657.7,1.14476113]
[1746946158117,0.24099372,659.09,657.71,1.14476113]
[1746946158518,0.24099372,659.09,657.72,1.14476113]
[1746946158716,0.24099372,659.09,657.72,1.42386979]
[1746946159117,0.24099372,659.09,657.73,1.14476113]
[1746946159318,0.24099372,659.09,657.74,1.42383524]
[1746946159820,0.24099372,659.09,657.75,0.27907411]
[1746946160020,0.24099372,659.09,657.76,1.14476113]
[1746946160421,0.24099372,659.09,657.77,1.42383524]
[1746946160721,0.24099372,659.09,657.78,0.27907411]
[1746946160917,0.24099372,659.09,657.79,1.14476113]
[1746946161421,0.24099372,659.09,657.8,1.14476113]
[1746946161921,0.24099372,659.09,657.81,1.42383524]
[1746946162222,0.24099372,659.09,657.82,1.42383524]
[1746946162522,0.24099372,659.09,657.83,1.42383524]
[1746946163121,0.24099372,659.09,657.84,1.42383524]
[1746946163320,0.30344409,659.1,657.84,1.42383524]
[1746946163621,0.30344409,659.1,657.85,0.27907411]
[1746946163921,0.30344409,659.1,657.85,1.42383524]
[1746946164223,0.30344409,659.1,657.85,1.14476113]
[1746946164420,0.30344409,659.1,657.86,1.14476113]
[1746946164617,0.30344409,659.1,657.86,1.42378012]
[1746946164922,0.30344409,659.1,657.87,1.14476113]
[1746946165324,0.30344409,659.1,657.88,1.14476113]
[1746946165621,0.30344409,659.1,657.89,0.27901899]
[1746946165821,0.30344409,659.1,657.9,1.14476113]
[1746946166221,0.30344409,659.1,657.91,1.42378012]
[1746946166517,0.30344409,659.1,657.92,0.27901899]
[1746946166821,0.30344409,659.1,657.91,1.14476113]
[1746946167022,0.30344409,659.1,657.92,1.14476113]
[1746946167217,0.30344409,659.1,657.92,1.42379327]
[1746946167422,0.30344409,659.1,657.93,1.14476113]
[1746946167722,0.30344409,659.1,657.93,1.42379327]
[1746946168017,0.30344409,659.1,657.94,1.42379327]
[1746946168217,0.30344409,659.1,657.95,1.14476113]
[1746946168622,0.30344409,659.1,657.96,1.14823915]
[1746946169118,0.30344409,659.1,657.97,1.14823915]
[1746946169323,0.30344409,659.1,657.98,1.14823915]
[1746946169622,0.30344409,659.1,657.99,1.42727635]
[1746946170018,0.30344409,659.1,658.0,1.42727635]
[1746946170223,0.30344409,659.1,658.0,1.14823915]
[1746946170621,0.30344409,659.1,658.01,1.14823915]
[1746946171221,0.30344409,659.1,658.02,1.14823915]
[1746946171425,0.30344409,659.1,658.03,1.14823915]
[1746946171629,0.30344409,659.1,658.04,1.14823915]
[1746946173231,0.30344409,659.1,658.05,1.14823915]
[1746946173625,0.30344409,659.1,658.06,1.14823915]
[1746946174125,0.30344409,659.1,658.07,1.14823915]
[1746946174530,0.30344409,659.1,658.08,1.14823915]
[1746946174927,0.30344409,659.1,658.09,1.14823915]
[1746946175434,0.30344409,659.1,658.1,1.14823915]
[1746946175833,0.30344409,659.1,658.11,1.14823915]
[1746946176036,0.30344409,659.1,658.11,1.70023915]
[1746946176233,0.30344409,659.1,658.12,1.14823915]
[1746946176732,0.30344409,659.1,658.13,1.14823915]
[1746946177235,0.30344409,659.1,658.14,1.14823915]
[1746946177733,0.30344409,659.1,658.15,1.14823915]
[1746946177933,0.30344409,659.1,658.16,1.14823915]
[1746946178338,0.30344409,659.1,658.17,1.14823915]
[1746946178931,0.30344409,659.1,658.18,1.14823915]
[1746946179135,0.30344409,659.1,658.19,1.14823915]
[1746946179435,0.30344409,659.1,658.2,1.14823915]
[1746946179931,0.30344409,659.1,658.12,1.14823915]
[1746946181634,0.30344409,659.1,658.13,1.14823915]
[1746946182238,0.30344409,659.1,658.12,1.14823915]
[1746946182738,0.24134594,659.09,658.12,1.14823915]
[1746946183238,0.30344409,659.1,658.12,1.14823915]
[1746946185935,0.30344409,659.1,658.11,0.552]
[1746946185936,0.30344409,659.1,658.13,1.14823915]
[1746946186744,0.30344409,659.1,658.12,1.14823915]
[1746946187342,0.30344409,659.1,658.13,1.14823915]
[1746946187538,0.30344409,659.1,658.12,1.14823915]
[1746946188143,0.30344409,659.1,658.11,0.552]
[1746946188144,0.30344409,659.1,658.13,1.14823915]
[1746946188345,0.30344409,659.1,658.12,1.14823915]
[1746946188947,0.30344409,659.1,658.13,1.14823915]
[1746946189150,0.30344409,659.1,658.12,1.14823915]
[1746946190046,0.30344409,659.1,658.13,1.14823915]
[1746946190351,0.30344409,659.1,658.14,1.14823915]
[1746946190845,0.30344409,659.1,658.12,1.14823915]
[1746946191851,0.24129675,659.09,658.12,1.14823915]
[1746946192353,0.24129675,659.09,658.11,0.552]
[1746946192851,0.30344409,659.1,658.11,0.552]
[1746946193353,0.24126358,659.09,658.11,0.552]
[1746946195748,0.26424292,659.08,658.11,0.552]
[1746946196255,0.24126358,659.07,658.11,0.552]
[1746946198549,0.30344409,659.1,658.11,0.552]
[1746946198854,0.26424292,659.06,658.11,0.552]
[1746946199354,0.24118441,659.05,658.11,0.552]
[1746946201852,0.264266,659.04,658.11,0.552]
[1746946202255,0.24118441,659.03,658.11,0.552]
[1746946204758,0.26424091,659.02,658.11,0.552]
[1746946205057,0.26424091,659.02,657.79,0.26424091]
[1746946205252,0.24118441,659.01,657.79,0.26424091]
[1746946207854,0.24118441,659.01,657.8,1.15053584]
[1746946208059,0.24118441,659.01,657.79,0.26424091]
[1746946208561,0.24118441,659.01,657.8,1.15056479]
[1746946208760,0.24118441,659.01,657.81,1.15056479]
[1746946209157,0.26434228,659.1,657.8,0.579]
[1746946209560,0.24118441,659.09,657.8,0.579]
[1746946209757,0.24118441,659.09,657.81,1.15054008]
[1746946209961,0.24118441,659.09,657.82,1.15054008]
[1746946210260,0.24118441,659.09,657.83,1.15054008]
[1746946210662,0.24118441,659.09,657.84,1.15054008]
[1746946210957,0.24118441,659.09,657.8,0.579]
[1746946211356,0.24118441,659.09,657.81,1.15057919]
[1746946211757,0.24118441,659.09,657.82,1.15057919]
[1746946211961,0.24118441,659.09,657.83,1.15057919]
[1746946212263,0.24118441,659.09,657.8,0.579]
[1746946212463,0.3034579,659.07,657.8,0.579]
[1746946212657,0.3034579,659.07,657.81,1.15041577]
[1746946212861,0.3034579,659.07,657.82,1.15041577]
[1746946213362,0.24118441,659.06,657.83,1.15041577]
[1746946213764,0.24118441,659.06,657.81,0.26424994]
[1746946214464,0.24118441,659.06,657.82,1.15029395]
[1746946215164,0.24118441,659.06,657.83,1.15029395]
[1746946215660,0.24118441,659.06,657.81,0.26424994]
[1746946216063,0.24118441,659.06,657.82,1.14804612]
[1746946216664,0.24118441,659.06,657.83,1.14804612]
[1746946217367,0.24118441,659.06,657.84,1.14804612]
[1746946217963,0.24118441,659.06,657.85,1.14804612]
[1746946218267,0.24118441,659.06,657.86,1.14804612]
[1746946218767,0.24118441,659.06,657.87,1.14804612]
[1746946219269,0.30347171,659.04,657.88,1.14804612]
[1746946219570,0.24118441,659.03,657.89,1.14804612]
[1746946219962,0.24118441,659.03,657.9,1.14804612]
[1746946220169,0.30347171,659.04,657.9,1.14804612]
[1746946220463,0.30347171,659.04,657.91,1.14804612]
[1746946221164,0.30347171,659.04,657.92,1.14804612]
[1746946221567,0.30347171,659.04,657.93,1.14804612]
[1746946222068,0.30347171,659.04,657.94,1.14804612]
[1746946222368,0.30347171,659.04,657.95,1.14804612]
[1746946223163,0.30347171,659.04,657.96,1.14804612]
[1746946223569,0.24156752,659.03,657.97,1.14804612]
[1746946223770,0.30347171,659.04,657.97,1.14804612]
[1746946224166,0.30347171,659.04,657.98,1.14804612]
[1746946224771,0.30347171,659.04,657.99,1.14804612]
[1746946225070,0.30347171,659.04,658.0,1.14804612]
[1746946225673,0.30347171,659.04,658.01,1.14804612]
[1746946226271,0.30347171,659.04,658.02,1.14804612]
[1746946226567,0.30347171,659.04,658.03,1.14804612]
[1746946227072,0.30347171,659.04,658.04,0.27895331]
[1746946227472,0.30347171,659.04,658.05,1.14804612]
[1746946227968,0.30347171,659.04,658.06,1.14804612]
[1746946228167,0.30347171,659.04,658.07,0.27895331]
[1746946228471,0.30347171,659.04,658.08,1.14804612]
[1746946228872,0.30347171,659.04,658.09,1.14804612]
[1746946229070,0.30347171,659.04,658.09,1.42699943]
[1746946229272,0.30347171,659.04,658.1,0.27895331]
[1746946229474,0.30347171,659.04,658.1,1.42699943]
[1746946229772,0.30347171,659.04,658.11,1.14804612]
[1746946230073,0.30347171,659.04,658.12,0.27895331]
[1746946230277,0.30347171,659.04,658.13,1.14804612]
[1746946230868,0.30347171,659.04,658.14,0.27895331]
[1746946231273,0.30347171,659.04,658.15,1.14804612]
[1746946231672,0.30347171,659.04,658.16,1.14804612]
[1746946231868,0.30347171,659.04,658.16,1.42699943]
[1746946232073,0.30347171,659.04,658.17,1.42699943]
[1746946232474,0.30347171,659.04,658.18,0.27895331]
[1746946232975,0.30347171,659.04,658.19,1.14804612]
[1746946233178,0.30347171,659.04,658.2,1.14804612]
[1746946233372,0.30347171,659.04,658.21,0.27895331]
[1746946233875,0.30347171,659.04,658.22,1.14804612]
[1746946234378,0.30347171,659.04,658.23,1.14804612]
[1746946234873,0.30347171,659.04,658.24,1.14804612]
[1746946235073,0.30347171,659.04,658.25,1.14804612]
[1746946235577,0.30347171,659.04,658.26,1.14804612]
[1746946235979,0.30347171,659.04,658.27,1.14804612]
[1746946236677,0.30347171,659.04,658.28,1.14804612]
[1746946237078,0.30347171,659.04,658.29,1.14804612]
[1746946237674,0.30347171,659.04,658.3,1.14804612]
[1746946237878,0.30347171,659.04,658.31,1.14804612]
[1746946238580,0.30347171,659.04,658.17,0.26404644]
[1746946238879,0.30347171,659.04,658.18,1.14449172]
[1746946239379,0.30347171,659.04,658.19,1.14449172]
[1746946240076,0.30347171,659.04,658.18,1.14449172]
[1746946241801,0.30347171,659.04,658.18,1.51949172]
[1746946242181,0.30347171,659.04,658.19,1.14449172]
[1746946248386,0.30347171,659.04,658.2,1.14449172]
[1746946248881,0.30347171,659.04,658.21,1.14449172]
[1746946249387,0.30347171,659.04,658.22,1.14449172]
[1746946249786,0.30347171,659.04,658.19,1.14449172]
[1746946250082,0.30347171,659.04,658.2,1.14449172]
[1746946250381,0.30347171,659.04,658.21,1.14449172]
[1746946250984,0.30347171,659.04,658.22,1.14449172]
[1746946251589,0.30347171,659.04,658.23,1.14449172]
[1746946252189,0.30347171,659.04,658.24,1.14449172]
[1746946252386,0.30347171,659.04,658.25,1.14449172]
[1746946252789,0.30347171,659.04,658.26,1.14449172]
[1746946253086,0.30347171,659.04,658.27,1.14449172]
[1746946253790,0.30347171,659.04,658.21,0.26404243]
[1746946253990,0.30347171,659.04,658.22,1.14402228]
[1746946254188,0.30347171,659.04,658.23,1.14402228]
[1746946254791,0.30347171,659.04,658.22,1.14402228]
[1746946255692,0.30347171,659.04,658.21,0.26404243]
[1746946257294,0.30347171,659.04,658.22,1.14594465]
[1746946257792,0.30347171,659.04,658.21,0.26404243]
[1746946257996,0.30347171,659.04,658.18,0.375]
[1746946258196,0.30347171,659.04,658.2,0.2641256]
[1746946258596,0.30347171,659.04,658.18,0.375]
[1746946258896,0.30347171,659.04,658.18,0.63912961]
[1746946259797,0.24264321,659.03,658.18,0.63912961]
[1746946259999,0.30348553,659.01,658.18,0.63912961]
[1746946260492,0.24264321,659.0,658.18,0.375]
[1746946260999,0.30349934,658.98,658.18,0.375]
[1746946261299,0.24264321,658.97,658.18,0.375]
[1746946262299,0.30350855,658.96,658.18,0.375]
[1746946262594,0.24264321,658.95,658.18,0.375]
[1746946263401,0.30351777,658.94,658.18,0.375]
[1746946265295,0.30351777,658.94,658.19,1.15138617]
[1746946265801,0.30351777,658.94,658.2,1.15138617]
[1746946266098,0.30351777,658.94,658.21,1.15138617]
[1746946266604,0.30351777,658.94,658.22,1.15138617]
[1746946267303,0.30351777,658.94,658.23,1.15138617]
[1746946268001,0.30351777,658.94,658.24,1.59638617]
[1746946268199,0.30351777,658.94,658.25,1.15138617]
[1746946268805,0.30351777,658.94,658.26,1.15138617]
[1746946269500,0.30351777,658.94,658.25,1.15138617]
[1746946274708,0.30351777,658.94,658.26,1.15138617]
[1746946275108,0.30351777,658.94,658.27,1.15138617]
[1746946275510,0.30351777,658.94,658.28,1.15138617]
[1746946275707,0.30351777,658.94,658.29,1.15138617]
[1746946276305,0.30351777,658.94,658.3,1.15138617]
[1746946276809,0.30351777,658.94,658.31,1.15138617]
[1746946277409,0.30351777,658.94,658.32,1.15138617]
[1746946277709,0.30351777,658.94,658.33,1.15138617]
[1746946278311,0.30351777,658.94,658.34,1.15138617]
[1746946278710,0.30351777,658.94,658.35,1.15138617]
[1746946279206,0.30351777,658.94,658.36,1.15138617]
[1746946279607,0.30351777,658.94,658.37,1.15138617]
[1746946280210,0.30351777,658.94,658.38,1.15138617]
[1746946280611,0.30351777,658.94,658.39,1.15138617]
[1746946281211,0.30351777,658.94,658.27,0.26407349]
[1746946281212,0.30351777,658.94,658.4,1.15138617]
[1746946281714,0.30351777,658.94,658.41,1.15138617]
[1746946282114,0.30351777,658.94,658.42,1.15138617]
[1746946282312,0.30351777,658.94,658.43,1.15138617]
[1746946283015,0.30351777,658.94,658.44,1.15138617]
[1746946283311,0.30351777,658.94,658.45,1.15138617]
[1746946283610,0.30351777,658.94,658.46,1.15138617]
[1746946284116,0.30351777,658.94,658.47,1.15138617]
[1746946284811,0.30351777,658.94,658.48,1.15138617]
[1746946285316,0.30351777,658.94,658.49,1.15138617]
[1746946285714,0.30351777,658.94,658.5,1.15138617]
[1746946286314,0.30351777,658.94,658.51,1.15138617]
[1746946286819,0.30351777,658.94,658.52,1.15138617]
[1746946287318,0.30351777,658.94,658.53,1.15138617]
[1746946287618,0.30351777,658.94,658.54,1.15138617]
[1746946288118,0.30351777,658.94,658.55,1.15138617]
[1746946288721,0.30351777,658.94,658.56,1.15138617]
[1746946289018,0.30351777,658.94,658.57,1.15138617]
[1746946289518,0.30351777,658.94,658.58,1.15138617]
[1746946289814,0.30351777,658.94,658.59,1.15138617]
[1746946290015,0.30351777,658.94,658.6,1.15138617]
[1746946290720,0.30351777,658.94,658.61,1.15138617]
[1746946290918,0.30351777,658.94,658.62,1.15138617]
[1746946291420,0.30351777,658.94,658.63,1.15138617]
[1746946291923,0.30351777,658.94,658.64,1.15138617]
[1746946292823,0.30351777,658.94,658.65,1.15138617]
[1746946293523,0.30351777,658.94,658.66,1.15138617]
[1746946294021,0.30351777,658.94,658.67,1.15138617]
[1746946294526,0.30351777,658.94,658.45,0.26397433]
[1746946294527,0.30351777,658.94,658.68,1.15138617]
[1746946295026,0.30351777,658.94,658.69,1.15138617]
[1746946295425,0.30351777,658.94,658.7,1.15138617]
[1746946295627,0.30351777,658.94,658.71,1.15138617]
[1746946296427,0.30351777,658.94,658.72,1.15138617]
[1746946297028,0.30351777,658.94,658.73,1.15138617]
[1746946297427,0.30351777,658.94,658.74,1.15138617]
[1746946297825,0.30351777,658.94,658.43,0.6]
[1746946297826,0.30351777,658.94,658.75,1.15138617]
[1746946298529,0.30351777,658.94,658.76,1.15138617]
[1746946298924,0.30351777,658.94,658.77,1.15138617]
[1746946299324,0.30351777,658.94,658.78,1.15138617]
[1746946299828,0.30351777,658.94,658.79,1.15138617]
[1746946300024,0.30351777,658.94,658.8,1.15138617]
[1746946300530,0.30351777,658.94,658.81,1.43001304]
[1746946300930,0.30351777,658.94,658.82,0.27862687]
[1746946301130,0.30351777,658.94,658.82,1.43001304]
[1746946301330,0.30351777,658.94,658.83,0.27862687]
[1746946301632,0.30351777,658.94,658.84,1.15138617]
[1746946301830,0.30351777,658.94,658.85,0.27862687]
[1746946302029,0.30351777,658.94,658.86,1.15138617]
[1746946302530,0.30351777,658.94,658.87,0.27862687]
[1746946302726,0.30351777,658.94,658.87,1.43001304]
[1746946303130,0.30351777,658.94,658.88,0.27862687]
[1746946303331,0.30351777,658.94,658.89,1.15138617]
[1746946303633,0.30351777,658.94,658.9,1.15138617]
[1746946304632,0.30351777,658.94,658.91,1.15138617]
[1746946305031,0.30351777,658.94,658.92,1.15138617]
[1746946305227,0.30351777,658.94,658.93,1.15138617]
[1746946329950,0.26386625,660.52,658.93,1.15138617]
[1746946330244,0.24280014,660.51,658.93,1.15138617]
[1746946330444,0.24280014,660.51,658.94,1.15138617]
[1746946330844,0.24280014,660.51,658.95,1.15138617]
[1746946331147,0.26365234,660.52,658.95,1.15138617]
[1746946331348,0.26365234,660.52,658.96,1.15138617]
[1746946331550,0.24280014,660.51,658.96,1.15138617]
[1746946331850,0.24280014,660.51,658.97,1.15138617]
[1746946332448,0.24280014,660.51,658.98,1.15138617]
[1746946332751,0.24280014,660.51,658.99,1.15138617]
[1746946333152,0.26365234,660.52,659.0,1.74738617]
[1746946333352,0.2427509,660.51,659.0,1.74738617]
[1746946333553,0.2427509,660.51,659.01,1.15138617]
[1746946334054,0.26366932,660.56,659.02,1.15138617]
[1746946334247,0.26366932,660.56,659.03,1.15138617]
[1746946334553,0.2427509,660.55,659.04,1.15138617]
[1746946334852,0.2427509,660.55,659.05,1.15138617]
[1746946335352,0.2427509,660.55,659.06,1.15138617]
[1746946335553,0.2427509,660.55,659.07,1.15138617]
[1746946336147,0.2427509,660.55,659.08,1.15138617]
[1746946336951,0.2427509,660.55,659.0,0.85968231]
[1746946336952,0.2636893,660.54,659.09,1.15138617]
[1746946337252,0.2427509,660.53,659.09,1.15138617]
[1746946337452,0.2427509,660.53,659.1,1.15138617]
[1746946337648,0.30279632,660.51,659.1,1.15138617]
[1746946337853,0.30279632,660.51,659.11,1.15138617]
[1746946338150,0.30279632,660.51,659.0,0.85968231]
[1746946338347,0.24272007,660.5,659.12,1.15025891]
[1746946338853,0.24272007,660.5,659.13,1.15025891]
[1746946339051,0.24272007,660.5,659.01,1.15025891]
[1746946339554,0.24272007,660.5,659.02,1.15025891]
[1746946340049,0.24272007,660.5,659.03,1.15025891]
[1746946340656,0.24272007,660.49,659.04,1.15025891]
[1746946340957,0.24272007,660.5,659.04,1.15025891]
[1746946341259,0.24272007,660.5,659.05,1.15025891]
[1746946341657,0.24272007,660.5,659.06,1.15025891]
[1746946342258,0.24272007,660.5,659.07,1.15025891]
[1746946342852,0.26373426,660.49,659.07,1.15025891]
[1746946343058,0.26373426,660.49,659.03,0.26373426]
[1746946343253,0.24272007,660.48,659.03,0.26373426]
[1746946343455,0.24272007,660.48,659.04,1.15025891]
[1746946344559,0.24272007,660.47,659.04,1.15025891]